[Event "Titled Tuesday Blitz April 26 Early 2022"]
[White "Lach, Aleksandra"]
[Black "O`Gorman, Tom"]
[WhiteFideId "1134299"]
[BlackFideId "2508249"]
[WhiteElo "2172"]
[BlackElo "2247"]
[Result "0-1"]
[Round "10"]
[TimeControl "180+1"]
[Date "2022.04.26"]
[WhiteClock "0:00:09"]
[BlackClock "0:00:27"]

1. e4 {[%clk 0:03:00]}  e5 {[%clk 0:02:57]} 2. Nc3 {[%clk 0:03:00]}  Nf6 {[%clk 0:02:57]} 3. d4 {[%clk 0:03:00]}  exd4 {[%clk 0:02:57]} 4. Qxd4 {[%clk 0:03:01]}  Nc6 {[%clk 0:02:56]} 5. Qd3 {[%clk 0:03:01]}  Be7 {[%clk 0:02:52]} 6. Bf4 {[%clk 0:03:01]}  O-O {[%clk 0:02:50]} 7. f3 {[%clk 0:02:58]}  d5 {[%clk 0:02:46]} 8. Nxd5 {[%clk 0:02:49]}  Nxd5 {[%clk 0:02:41]} 9. Qxd5 {[%clk 0:02:49]}  Nb4 {[%clk 0:02:28]} 10. Qb3 {[%clk 0:02:31]}  Be6 {[%clk 0:02:19]} 11. Bc4 {[%clk 0:02:31]}  Bxc4 {[%clk 0:02:15]} 12. Qxc4 {[%clk 0:02:31]}  Qd4 {[%clk 0:02:07]} 13. Qxd4 {[%clk 0:02:25]}  Nxc2+ {[%clk 0:02:07]} 14. Kf1 {[%clk 0:02:23]}  Nxd4 {[%clk 0:02:08]} 15. Bxc7 {[%clk 0:02:21]}  Rac8 {[%clk 0:02:07]} 16. Ba5 {[%clk 0:02:21]}  Rc2 {[%clk 0:02:05]} 17. Bc3 {[%clk 0:02:21]}  Nb5 {[%clk 0:02:04]} 18. Ne2 {[%clk 0:02:20]}  Rd8 {[%clk 0:01:56]} 19. f4 {[%clk 0:01:18]}  Nxc3 {[%clk 0:01:51]} 20. bxc3 {[%clk 0:01:18]}  Rdd2 {[%clk 0:01:50]} 21. Re1 {[%clk 0:01:19]}  Rxa2 {[%clk 0:01:47]} 22. Kf2 {[%clk 0:01:19]}  Bc5+ {[%clk 0:01:42]} 23. Kf3 {[%clk 0:01:19]}  h5 {[%clk 0:01:40]} 24. e5 {[%clk 0:00:49]}  Rd3+ {[%clk 0:01:18]} 25. Ke4 {[%clk 0:00:49]}  Re3+ {[%clk 0:01:19]} 26. Kd5 {[%clk 0:00:49]}  Raxe2 {[%clk 0:01:18]} 27. Rxe2 {[%clk 0:00:49]}  Rxe2 {[%clk 0:01:19]} 28. Kxc5 {[%clk 0:00:50]}  Rxg2 {[%clk 0:01:18]} 29. f5 {[%clk 0:00:46]}  Rf2 {[%clk 0:01:15]} 30. Ra1 {[%clk 0:00:31]}  Rxf5 {[%clk 0:01:12]} 31. Kd6 {[%clk 0:00:32]}  a6 {[%clk 0:01:11]} 32. Rb1 {[%clk 0:00:32]}  Rf3 {[%clk 0:01:08]} 33. c4 {[%clk 0:00:31]}  Rd3+ {[%clk 0:00:58]} 34. Kc5 {[%clk 0:00:31]}  b5 {[%clk 0:00:57]} 35. cxb5 {[%clk 0:00:25]}  axb5 {[%clk 0:00:58]} 36. Rb2 {[%clk 0:00:21]}  Kh7 {[%clk 0:00:53]} 37. Rf2 {[%clk 0:00:18]}  Kg6 {[%clk 0:00:52]} 38. Rg2+ {[%clk 0:00:17]}  Kf5 {[%clk 0:00:51]} 39. Rxg7 {[%clk 0:00:17]}  Ke6 {[%clk 0:00:49]} 40. Kxb5 {[%clk 0:00:13]}  Rh3 {[%clk 0:00:45]} 41. Kc4 {[%clk 0:00:12]}  Rxh2 {[%clk 0:00:45]} 42. Kd4 {[%clk 0:00:12]}  Rh4+ {[%clk 0:00:45]} 43. Ke3 {[%clk 0:00:12]}  Rg4 {[%clk 0:00:41]} 44. Rh7 {[%clk 0:00:12]}  Rg5 {[%clk 0:00:39]} 45. Kf4 {[%clk 0:00:12]}  Rf5+ {[%clk 0:00:39]} 46. Kg3 {[%clk 0:00:10]}  Rxe5 {[%clk 0:00:39]} 47. Kh4 {[%clk 0:00:10]}  Kf6 {[%clk 0:00:35]} 48. Rh6+ {[%clk 0:00:11]}  Kg7 {[%clk 0:00:35]} 49. Rd6 {[%clk 0:00:10]}  f6 {[%clk 0:00:35]} 50. Rd8 {[%clk 0:00:09]}  Kg6 {[%clk 0:00:28]} 51. Rg8+ {[%clk 0:00:09]}  Kf5 {[%clk 0:00:28]} 52. Kxh5 {[%clk 0:00:09]}  Re1 {[%clk 0:00:27]} 0-1


[Site "https://www.chess.com"]

[Event "Titled Tuesday Blitz April 26 Early 2022"]
[White "Lazavik, Denis"]
[Black "Daneshvar, Bardiya"]
[WhiteFideId "13515110"]
[BlackFideId "12576468"]
[WhiteElo "2437"]
[BlackElo "2330"]
[Result "0-1"]
[Round "10"]
[TimeControl "180+1"]
[Date "2022.04.26"]
[WhiteClock "0:00:24"]
[BlackClock "0:00:31"]

1. d4 {[%clk 0:03:00]}  Nf6 {[%clk 0:03:00]} 2. c4 {[%clk 0:03:01]}  e6 {[%clk 0:03:00]} 3. Nf3 {[%clk 0:03:02]}  d5 {[%clk 0:02:59]} 4. g3 {[%clk 0:03:02]}  Bb4+ {[%clk 0:02:58]} 5. Bd2 {[%clk 0:03:02]}  Be7 {[%clk 0:02:58]} 6. Bg2 {[%clk 0:03:02]}  O-O {[%clk 0:02:58]} 7. O-O {[%clk 0:03:02]}  c6 {[%clk 0:02:58]} 8. Bf4 {[%clk 0:03:02]}  dxc4 {[%clk 0:02:57]} 9. Ne5 {[%clk 0:03:02]}  Nd5 {[%clk 0:02:56]} 10. Nxc4 {[%clk 0:03:02]}  Nxf4 {[%clk 0:02:56]} 11. gxf4 {[%clk 0:03:03]}  Nd7 {[%clk 0:02:53]} 12. e3 {[%clk 0:03:02]}  Nb6 {[%clk 0:02:50]} 13. Ne5 {[%clk 0:03:02]}  Nd5 {[%clk 0:02:50]} 14. Nd2 {[%clk 0:03:01]}  c5 {[%clk 0:02:46]} 15. dxc5 {[%clk 0:02:49]}  Bxc5 {[%clk 0:02:47]} 16. Ne4 {[%clk 0:02:50]}  Be7 {[%clk 0:02:41]} 17. Qb3 {[%clk 0:02:39]}  f6 {[%clk 0:02:34]} 18. Nd3 {[%clk 0:02:36]}  b6 {[%clk 0:02:32]} 19. Rfd1 {[%clk 0:02:25]}  Bb7 {[%clk 0:02:25]} 20. f5 {[%clk 0:02:16]}  Kh8 {[%clk 0:02:18]} 21. fxe6 {[%clk 0:02:14]}  Qc8 {[%clk 0:02:13]} 22. Nf4 {[%clk 0:01:41]}  Nxf4 {[%clk 0:02:13]} 23. exf4 {[%clk 0:01:42]}  f5 {[%clk 0:02:13]} 24. Rac1 {[%clk 0:01:42]}  Qe8 {[%clk 0:02:13]} 25. Nd6 {[%clk 0:01:37]}  Bxd6 {[%clk 0:02:10]} 26. Rxd6 {[%clk 0:01:30]}  Bxg2 {[%clk 0:02:04]} 27. Kxg2 {[%clk 0:01:30]}  Rf6 {[%clk 0:02:04]} 28. Qd5 {[%clk 0:01:27]}  Qg6+ {[%clk 0:02:03]} 29. Kh1 {[%clk 0:01:26]}  Re8 {[%clk 0:02:03]} 30. Re1 {[%clk 0:01:18]}  h6 {[%clk 0:01:44]} 31. Rd8 {[%clk 0:01:16]}  Rff8 {[%clk 0:01:34]} 32. e7 {[%clk 0:01:08]}  Rg8 {[%clk 0:01:33]} 33. Re5 {[%clk 0:00:55]}  Kh7 {[%clk 0:01:21]} 34. Rxe8 {[%clk 0:00:46]}  Rxe8 {[%clk 0:01:19]} 35. Qd7 {[%clk 0:00:46]}  Qh5 {[%clk 0:01:13]} 36. Kg1 {[%clk 0:00:39]}  Qg4+ {[%clk 0:00:47]} 37. Kf1 {[%clk 0:00:39]}  Qh3+ {[%clk 0:00:48]} 38. Ke1 {[%clk 0:00:39]}  Qh5 {[%clk 0:00:47]} 39. b3 {[%clk 0:00:38]}  Qf7 {[%clk 0:00:43]} 40. Kd2 {[%clk 0:00:38]}  Qh5 {[%clk 0:00:40]} 41. Kc2 {[%clk 0:00:35]}  Qf7 {[%clk 0:00:37]} 42. Kb2 {[%clk 0:00:35]}  Qg6 {[%clk 0:00:33]} 43. Qxa7 {[%clk 0:00:34]}  Qd6 {[%clk 0:00:32]} 44. Qc7 {[%clk 0:00:24]}  Qxc7 {[%clk 0:00:31]} 0-1


[Site "https://www.chess.com"]

[Event "Titled Tuesday Blitz April 26 Early 2022"]
[White "Martic, Ivan"]
[Black "Toncheva, Nadya"]
[WhiteFideId "929301"]
[BlackFideId "2924056"]
[WhiteElo "2317"]
[BlackElo "1884"]
[Result "1-0"]
[Round "10"]
[TimeControl "180+1"]
[Date "2022.04.26"]
[WhiteClock "0:00:21"]
[BlackClock "0:00:02"]

1. c4 {[%clk 0:02:54]}  Nf6 {[%clk 0:02:59]} 2. Nc3 {[%clk 0:02:51]}  g6 {[%clk 0:02:57]} 3. e4 {[%clk 0:02:49]}  d6 {[%clk 0:02:57]} 4. d4 {[%clk 0:02:49]}  Bg7 {[%clk 0:02:57]} 5. h3 {[%clk 0:02:49]}  O-O {[%clk 0:02:56]} 6. Be3 {[%clk 0:02:49]}  e5 {[%clk 0:02:55]} 7. d5 {[%clk 0:02:48]}  a5 {[%clk 0:02:55]} 8. g4 {[%clk 0:02:48]}  h5 {[%clk 0:02:46]} 9. g5 {[%clk 0:02:40]}  Nfd7 {[%clk 0:02:43]} 10. Nf3 {[%clk 0:02:38]}  Na6 {[%clk 0:02:42]} 11. a3 {[%clk 0:02:36]}  Ndc5 {[%clk 0:02:40]} 12. b4 {[%clk 0:02:33]}  Nd7 {[%clk 0:02:37]} 13. Be2 {[%clk 0:02:29]}  b6 {[%clk 0:02:20]} 14. Rb1 {[%clk 0:02:25]}  axb4 {[%clk 0:02:18]} 15. axb4 {[%clk 0:02:26]}  Bb7 {[%clk 0:02:18]} 16. Nh4 {[%clk 0:02:21]}  Qe7 {[%clk 0:02:08]} 17. Rg1 {[%clk 0:02:20]}  Rfc8 {[%clk 0:01:59]} 18. Bxh5 {[%clk 0:02:19]}  gxh5 {[%clk 0:01:57]} 19. Nf5 {[%clk 0:02:19]}  Qe8 {[%clk 0:01:53]} 20. g6 {[%clk 0:02:15]}  fxg6 {[%clk 0:01:41]} 21. Rxg6 {[%clk 0:02:14]}  Qxg6 {[%clk 0:01:41]} 22. Ne7+ {[%clk 0:02:14]}  Kf7 {[%clk 0:01:41]} 23. Nxg6 {[%clk 0:02:15]}  Kxg6 {[%clk 0:01:42]} 24. Ke2 {[%clk 0:02:13]}  Rf8 {[%clk 0:01:30]} 25. Qg1+ {[%clk 0:02:10]}  Kh7 {[%clk 0:01:29]} 26. Qg5 {[%clk 0:02:10]}  Nf6 {[%clk 0:01:28]} 27. Rg1 {[%clk 0:02:03]}  Rf7 {[%clk 0:01:09]} 28. Qf5+ {[%clk 0:02:02]}  Kh8 {[%clk 0:00:58]} 29. Qg6 {[%clk 0:01:59]}  Raf8 {[%clk 0:00:54]} 30. Bh6 {[%clk 0:01:56]}  Bxh6 {[%clk 0:00:50]} 31. Qxh6+ {[%clk 0:01:57]}  Nh7 {[%clk 0:00:51]} 32. Rg2 {[%clk 0:01:48]}  Bc8 {[%clk 0:00:42]} 33. Qxh5 {[%clk 0:01:43]}  Nxb4 {[%clk 0:00:39]} 34. Nd1 {[%clk 0:01:26]}  Nc2 {[%clk 0:00:35]} 35. Kd2 {[%clk 0:01:23]}  Nd4 {[%clk 0:00:33]} 36. Kc1 {[%clk 0:01:23]}  Ba6 {[%clk 0:00:30]} 37. Ne3 {[%clk 0:01:22]}  Rxf2 {[%clk 0:00:28]} 38. Rxf2 {[%clk 0:01:20]}  Rxf2 {[%clk 0:00:28]} 39. Qh4 {[%clk 0:01:20]}  Rf7 {[%clk 0:00:17]} 40. Ng4 {[%clk 0:01:13]}  Bxc4 {[%clk 0:00:08]} 41. Qd8+ {[%clk 0:01:08]}  Kg7 {[%clk 0:00:08]} 42. h4 {[%clk 0:01:09]}  Ne2+ {[%clk 0:00:06]} 43. Kd2 {[%clk 0:01:05]}  Ng3 {[%clk 0:00:07]} 44. Ke3 {[%clk 0:00:56]}  Bf1 {[%clk 0:00:05]} 45. Nf2 {[%clk 0:00:53]}  Bg2 {[%clk 0:00:04]} 46. Ng4 {[%clk 0:00:48]}  Nxe4 {[%clk 0:00:03]} 47. h5 {[%clk 0:00:47]}  Nef6 {[%clk 0:00:02]} 48. h6+ {[%clk 0:00:38]}  Kg6 {[%clk 0:00:03]} 49. Nf2 {[%clk 0:00:38]}  Nxd5+ {[%clk 0:00:02]} 50. Ke2 {[%clk 0:00:36]}  Nf4+ {[%clk 0:00:02]} 51. Kd1 {[%clk 0:00:36]}  Bd5 {[%clk 0:00:02]} 52. Qg8+ {[%clk 0:00:33]}  Kxh6 {[%clk 0:00:03]} 53. Ng4+ {[%clk 0:00:33]}  Kh5 {[%clk 0:00:03]} 54. Ne3 {[%clk 0:00:29]}  Bf3+ {[%clk 0:00:03]} 55. Kc1 {[%clk 0:00:28]}  Rf6 {[%clk 0:00:03]} 56. Qxh7+ {[%clk 0:00:28]}  Kg5 {[%clk 0:00:03]} 57. Qg7+ {[%clk 0:00:28]}  Rg6 {[%clk 0:00:04]} 58. Qe7+ {[%clk 0:00:28]}  Kh5 {[%clk 0:00:03]} 59. Nf5 {[%clk 0:00:26]}  Nd3+ {[%clk 0:00:03]} 60. Kd2 {[%clk 0:00:25]}  Rg5 {[%clk 0:00:03]} 61. Ng7+ {[%clk 0:00:23]}  Kh6 {[%clk 0:00:03]} 62. Qf6+ {[%clk 0:00:21]}  Rg6 {[%clk 0:00:03]} 63. Nf5+ {[%clk 0:00:21]}  Kh5 {[%clk 0:00:02]} 64. Qh4# {[%clk 0:00:21]} 1-0


[Site "https://www.chess.com"]

[Event "Titled Tuesday Blitz April 26 Early 2022"]
[White "Martin, Lewis"]
[Black "Piliczewski, Bogusz"]
[WhiteFideId "410551"]
[BlackFideId "1104144"]
[WhiteElo "2145"]
[BlackElo "1896"]
[Result "1-0"]
[Round "10"]
[TimeControl "180+1"]
[Date "2022.04.26"]
[WhiteClock "0:00:36"]
[BlackClock "0:00:06"]

1. e4 {[%clk 0:02:54]}  c6 {[%clk 0:02:59]} 2. d4 {[%clk 0:02:53]}  d5 {[%clk 0:02:59]} 3. Nc3 {[%clk 0:02:52]}  dxe4 {[%clk 0:02:58]} 4. Nxe4 {[%clk 0:02:52]}  Bf5 {[%clk 0:02:59]} 5. Ng3 {[%clk 0:02:52]}  Bg6 {[%clk 0:03:00]} 6. Nf3 {[%clk 0:02:52]}  Nd7 {[%clk 0:02:59]} 7. h4 {[%clk 0:02:53]}  h6 {[%clk 0:02:59]} 8. h5 {[%clk 0:02:54]}  Bh7 {[%clk 0:02:59]} 9. Bd3 {[%clk 0:02:54]}  Bxd3 {[%clk 0:02:59]} 10. Qxd3 {[%clk 0:02:55]}  e6 {[%clk 0:02:59]} 11. Bd2 {[%clk 0:02:56]}  Ngf6 {[%clk 0:02:57]} 12. O-O-O {[%clk 0:02:56]}  Be7 {[%clk 0:02:56]} 13. c4 {[%clk 0:02:51]}  O-O {[%clk 0:02:52]} 14. Ne4 {[%clk 0:02:51]}  b5 {[%clk 0:02:39]} 15. c5 {[%clk 0:02:39]}  Nxc5 {[%clk 0:02:31]} 16. Nxc5 {[%clk 0:02:35]}  Bxc5 {[%clk 0:02:30]} 17. Bxh6 {[%clk 0:02:31]}  Be7 {[%clk 0:01:57]} 18. Be3 {[%clk 0:02:24]}  Nd5 {[%clk 0:01:47]} 19. Ne5 {[%clk 0:02:21]}  Rc8 {[%clk 0:01:43]} 20. h6 {[%clk 0:02:14]}  f5 {[%clk 0:01:18]} 21. hxg7 {[%clk 0:02:11]}  Kxg7 {[%clk 0:01:17]} 22. Bh6+ {[%clk 0:02:09]}  Kf6 {[%clk 0:01:09]} 23. Bxf8 {[%clk 0:02:10]}  Bxf8 {[%clk 0:01:03]} 24. Rh7 {[%clk 0:02:01]}  Rc7 {[%clk 0:00:38]} 25. Rdh1 {[%clk 0:01:56]}  c5 {[%clk 0:00:33]} 26. Qg3 {[%clk 0:01:08]}  cxd4+ {[%clk 0:00:28]} 27. Kb1 {[%clk 0:01:08]}  f4 {[%clk 0:00:19]} 28. Qh4+ {[%clk 0:00:55]}  Kxe5 {[%clk 0:00:18]} 29. Qxd8 {[%clk 0:00:56]}  Rxh7 {[%clk 0:00:14]} 30. Rxh7 {[%clk 0:00:54]}  Bd6 {[%clk 0:00:09]} 31. f3 {[%clk 0:00:37]}  Nb4 {[%clk 0:00:06]} 32. Qg5# {[%clk 0:00:36]} 1-0


[Site "https://www.chess.com"]

[Event "Titled Tuesday Blitz April 26 Early 2022"]
[White "Matamoros Franco, Carlos S."]
[Black "Starozhilov, Leonid"]
[WhiteFideId "3600017"]
[BlackFideId "14106752"]
[WhiteElo "2554"]
[BlackElo "2414"]
[Result "1/2-1/2"]
[Round "10"]
[TimeControl "180+1"]
[Date "2022.04.26"]
[WhiteClock "0:00:23"]
[BlackClock "0:00:19"]

1. c4 {[%clk 0:02:50]}  Nf6 {[%clk 0:02:59]} 2. g3 {[%clk 0:02:50]}  g6 {[%clk 0:02:59]} 3. Bg2 {[%clk 0:02:50]}  Bg7 {[%clk 0:03:00]} 4. Nc3 {[%clk 0:02:50]}  O-O {[%clk 0:03:01]} 5. d4 {[%clk 0:02:51]}  d6 {[%clk 0:03:01]} 6. Nf3 {[%clk 0:02:51]}  c6 {[%clk 0:03:02]} 7. O-O {[%clk 0:02:51]}  Bf5 {[%clk 0:03:02]} 8. Ne1 {[%clk 0:02:42]}  Qc8 {[%clk 0:02:52]} 9. e4 {[%clk 0:02:37]}  Bh3 {[%clk 0:02:52]} 10. Nd3 {[%clk 0:02:36]}  Bxg2 {[%clk 0:02:52]} 11. Kxg2 {[%clk 0:02:37]}  Na6 {[%clk 0:02:45]} 12. f3 {[%clk 0:02:33]}  Rb8 {[%clk 0:02:34]} 13. a4 {[%clk 0:02:22]}  Nc7 {[%clk 0:02:30]} 14. Be3 {[%clk 0:01:51]}  Nd7 {[%clk 0:02:21]} 15. Qd2 {[%clk 0:01:40]}  Re8 {[%clk 0:02:19]} 16. Rfc1 {[%clk 0:01:39]}  Ne6 {[%clk 0:02:12]} 17. Ne2 {[%clk 0:01:31]}  c5 {[%clk 0:02:05]} 18. d5 {[%clk 0:01:26]}  Nd4 {[%clk 0:01:55]} 19. Nxd4 {[%clk 0:01:22]}  cxd4 {[%clk 0:01:55]} 20. Bh6 {[%clk 0:01:22]}  Nc5 {[%clk 0:01:34]} 21. Bxg7 {[%clk 0:01:18]}  Kxg7 {[%clk 0:01:35]} 22. Qd1 {[%clk 0:00:56]}  e5 {[%clk 0:01:22]} 23. dxe6 {[%clk 0:00:55]}  fxe6 {[%clk 0:01:22]} 24. b4 {[%clk 0:00:45]}  Nxd3 {[%clk 0:01:18]} 25. Qxd3 {[%clk 0:00:45]}  e5 {[%clk 0:01:17]} 26. c5 {[%clk 0:00:46]}  Qd7 {[%clk 0:01:09]} 27. Ra2 {[%clk 0:00:45]}  d5 {[%clk 0:00:51]} 28. exd5 {[%clk 0:00:37]}  Qxd5 {[%clk 0:00:51]} 29. Re2 {[%clk 0:00:38]}  Re6 {[%clk 0:00:46]} 30. Rce1 {[%clk 0:00:38]}  Rbe8 {[%clk 0:00:45]} 31. Re4 {[%clk 0:00:37]}  a5 {[%clk 0:00:41]} 32. bxa5 {[%clk 0:00:28]}  Qxc5 {[%clk 0:00:41]} 33. f4 {[%clk 0:00:27]}  Qxa5 {[%clk 0:00:29]} 34. fxe5 {[%clk 0:00:23]}  Qxa4 {[%clk 0:00:24]} 35. Qxd4 {[%clk 0:00:21]}  Qxd4 {[%clk 0:00:21]} 36. Rxd4 {[%clk 0:00:22]}  Rxe5 {[%clk 0:00:21]} 37. Rxe5 {[%clk 0:00:22]}  Rxe5 {[%clk 0:00:21]} 38. Rd7+ {[%clk 0:00:22]}  Kh6 {[%clk 0:00:20]} 39. Rxb7 {[%clk 0:00:23]}  Ra5 {[%clk 0:00:19]} 1/2-1/2


[Site "https://www.chess.com"]

[Event "Titled Tuesday Blitz April 26 Early 2022"]
[White "Menna Barreto, Felipe Kubiaki"]
[Black "Polster, Christian"]
[WhiteFideId "2119757"]
[BlackFideId "12965081"]
[WhiteElo "2261"]
[BlackElo "2279"]
[Result "1-0"]
[Round "10"]
[TimeControl "180+1"]
[Date "2022.04.26"]
[WhiteClock "0:00:15"]
[BlackClock "0:00:02"]

1. c4 {[%clk 0:02:59]}  e6 {[%clk 0:02:56]} 2. Nf3 {[%clk 0:02:56]}  d5 {[%clk 0:02:55]} 3. e3 {[%clk 0:02:56]}  Nf6 {[%clk 0:02:51]} 4. b3 {[%clk 0:02:55]}  c5 {[%clk 0:02:49]} 5. cxd5 {[%clk 0:02:54]}  Nxd5 {[%clk 0:02:46]} 6. d4 {[%clk 0:02:54]}  Nc6 {[%clk 0:02:46]} 7. Be2 {[%clk 0:02:45]}  cxd4 {[%clk 0:02:42]} 8. Nxd4 {[%clk 0:02:44]}  Bb4+ {[%clk 0:02:41]} 9. Kf1 {[%clk 0:02:41]}  Nc3 {[%clk 0:02:23]} 10. Nxc6 {[%clk 0:02:12]}  Qxd1+ {[%clk 0:01:33]} 11. Bxd1 {[%clk 0:02:10]}  bxc6 {[%clk 0:01:33]} 12. Nxc3 {[%clk 0:02:07]}  Bxc3 {[%clk 0:01:32]} 13. Rb1 {[%clk 0:02:08]}  Ba6+ {[%clk 0:01:26]} 14. Be2 {[%clk 0:02:08]}  Rd8 {[%clk 0:01:25]} 15. Ba3 {[%clk 0:01:49]}  Bxe2+ {[%clk 0:01:17]} 16. Kxe2 {[%clk 0:01:49]}  Rd2+ {[%clk 0:01:17]} 17. Kf3 {[%clk 0:01:49]}  Rxa2 {[%clk 0:01:14]} 18. Bc5 {[%clk 0:01:49]}  Bf6 {[%clk 0:01:08]} 19. Rhd1 {[%clk 0:01:37]}  Be7 {[%clk 0:01:05]} 20. Rbc1 {[%clk 0:01:35]}  Ra6 {[%clk 0:00:36]} 21. Bd6 {[%clk 0:01:23]}  Rb6 {[%clk 0:00:26]} 22. Rc3 {[%clk 0:01:11]}  f6 {[%clk 0:00:17]} 23. Rcd3 {[%clk 0:01:09]}  Rb7 {[%clk 0:00:14]} 24. Rc3 {[%clk 0:00:50]}  Rb6 {[%clk 0:00:11]} 25. Bc7 {[%clk 0:00:45]}  Rb7 {[%clk 0:00:07]} 26. Rxc6 {[%clk 0:00:41]}  Kf7 {[%clk 0:00:07]} 27. Rd3 {[%clk 0:00:35]}  Rc8 {[%clk 0:00:07]} 28. Rdc3 {[%clk 0:00:33]}  Ke8 {[%clk 0:00:04]} 29. Ba5 {[%clk 0:00:23]}  Rxc6 {[%clk 0:00:03]} 30. Rxc6 {[%clk 0:00:24]}  Rxb3 {[%clk 0:00:04]} 31. Rxe6 {[%clk 0:00:24]}  Rb7 {[%clk 0:00:03]} 32. Ra6 {[%clk 0:00:24]}  Kd7 {[%clk 0:00:03]} 33. Bc3 {[%clk 0:00:24]}  Bc5 {[%clk 0:00:03]} 34. Ke4 {[%clk 0:00:23]}  Bb6 {[%clk 0:00:03]} 35. Bd4 {[%clk 0:00:24]}  Kc6 {[%clk 0:00:03]} 36. f4 {[%clk 0:00:22]}  Kb5 {[%clk 0:00:03]} 37. Ra1 {[%clk 0:00:22]}  a5 {[%clk 0:00:02]} 38. Rb1+ {[%clk 0:00:23]}  Ka6 {[%clk 0:00:03]} 39. Ra1 {[%clk 0:00:17]}  Kb5 {[%clk 0:00:03]} 40. g4 {[%clk 0:00:16]}  a4 {[%clk 0:00:02]} 41. h4 {[%clk 0:00:16]}  Bxd4 {[%clk 0:00:02]} 42. Kxd4 {[%clk 0:00:15]}  Rc7 {[%clk 0:00:02]} 43. e4 {[%clk 0:00:14]}  Kb4 {[%clk 0:00:03]} 44. e5 {[%clk 0:00:14]}  fxe5+ {[%clk 0:00:02]} 45. fxe5 {[%clk 0:00:14]}  a3 {[%clk 0:00:03]} 46. Kd5 {[%clk 0:00:14]}  Kb3 {[%clk 0:00:02]} 47. Kd6 {[%clk 0:00:15]}  Rc2 {[%clk 0:00:02]} 48. e6 {[%clk 0:00:15]}  Rd2+ {[%clk 0:00:02]} 49. Ke7 {[%clk 0:00:15]}  a2 {[%clk 0:00:01]} 50. Kf7 {[%clk 0:00:14]}  Re2 {[%clk 0:00:01]} 51. e7 {[%clk 0:00:14]}  Kb2 {[%clk 0:00:01]} 52. Rxa2+ {[%clk 0:00:14]}  Kxa2 {[%clk 0:00:02]} 53. e8=Q {[%clk 0:00:15]}  Rxe8 {[%clk 0:00:02]} 54. Kxe8 {[%clk 0:00:15]} 1-0


[Site "https://www.chess.com"]

[Event "Titled Tuesday Blitz April 26 Early 2022"]
[White "Minko, Dmitry"]
[Black "Ljukin, Sergei"]
[WhiteFideId "24188468"]
[BlackFideId "14102200"]
[WhiteElo "1928"]
[BlackElo "2312"]
[Result "0-1"]
[Round "10"]
[TimeControl "180+1"]
[Date "2022.04.26"]
[WhiteClock "0:00:01"]
[BlackClock "0:00:12"]

1. e4 {[%clk 0:03:00]}  e6 {[%clk 0:02:51]} 2. d4 {[%clk 0:03:00]}  d5 {[%clk 0:02:48]} 3. Nc3 {[%clk 0:03:00]}  Bb4 {[%clk 0:02:47]} 4. e5 {[%clk 0:03:01]}  Ne7 {[%clk 0:02:47]} 5. a3 {[%clk 0:03:01]}  Bxc3+ {[%clk 0:02:43]} 6. bxc3 {[%clk 0:03:02]}  c5 {[%clk 0:02:37]} 7. h4 {[%clk 0:03:02]}  Bd7 {[%clk 0:02:34]} 8. h5 {[%clk 0:02:57]}  h6 {[%clk 0:02:34]} 9. Nf3 {[%clk 0:02:51]}  Ba4 {[%clk 0:02:30]} 10. Bd3 {[%clk 0:02:46]}  c4 {[%clk 0:02:30]} 11. Bf1 {[%clk 0:02:46]}  Nbc6 {[%clk 0:02:28]} 12. g3 {[%clk 0:02:46]}  Qa5 {[%clk 0:02:26]} 13. Bd2 {[%clk 0:02:46]}  O-O-O {[%clk 0:02:26]} 14. Bh3 {[%clk 0:02:43]}  Kb8 {[%clk 0:02:26]} 15. O-O {[%clk 0:02:39]}  Ka8 {[%clk 0:02:26]} 16. Nh4 {[%clk 0:02:37]}  Rdg8 {[%clk 0:02:10]} 17. Kh2 {[%clk 0:02:31]}  Nd8 {[%clk 0:02:02]} 18. Ra2 {[%clk 0:02:20]}  Qc7 {[%clk 0:01:52]} 19. Qf3 {[%clk 0:02:03]}  Bd7 {[%clk 0:01:50]} 20. a4 {[%clk 0:02:00]}  Rf8 {[%clk 0:01:39]} 21. Qe2 {[%clk 0:01:55]}  f6 {[%clk 0:01:37]} 22. exf6 {[%clk 0:01:53]}  gxf6 {[%clk 0:01:36]} 23. Bf4 {[%clk 0:01:35]}  Qc6 {[%clk 0:01:35]} 24. Re1 {[%clk 0:01:22]}  Re8 {[%clk 0:01:29]} 25. Qd2 {[%clk 0:00:45]}  Nf7 {[%clk 0:01:24]} 26. Ng6 {[%clk 0:00:39]}  Nxg6 {[%clk 0:01:21]} 27. hxg6 {[%clk 0:00:40]}  Ng5 {[%clk 0:01:21]} 28. Bg2 {[%clk 0:00:27]}  Reg8 {[%clk 0:01:15]} 29. a5 {[%clk 0:00:19]}  Rxg6 {[%clk 0:01:13]} 30. Rb1 {[%clk 0:00:19]}  h5 {[%clk 0:01:09]} 31. Kg1 {[%clk 0:00:17]}  h4 {[%clk 0:01:08]} 32. Rab2 {[%clk 0:00:11]}  Bc8 {[%clk 0:01:07]} 33. Rb5 {[%clk 0:00:10]}  hxg3 {[%clk 0:00:39]} 34. fxg3 {[%clk 0:00:10]}  Ne4 {[%clk 0:00:37]} 35. Bxe4 {[%clk 0:00:09]}  dxe4 {[%clk 0:00:37]} 36. d5 {[%clk 0:00:08]}  exd5 {[%clk 0:00:29]} 37. Qxd5 {[%clk 0:00:09]}  Qxd5 {[%clk 0:00:20]} 38. Rxd5 {[%clk 0:00:10]}  Bg4 {[%clk 0:00:19]} 39. Rd4 {[%clk 0:00:08]}  Bf3 {[%clk 0:00:18]} 40. Rb4 {[%clk 0:00:03]}  Rg7 {[%clk 0:00:15]} 41. Rbxc4 {[%clk 0:00:02]}  Re7 {[%clk 0:00:14]} 42. a6 {[%clk 0:00:02]}  e3 {[%clk 0:00:13]} 43. Kf1 {[%clk 0:00:01]}  Rh1# {[%clk 0:00:12]} 0-1


[Site "https://www.chess.com"]

[Event "Titled Tuesday Blitz April 26 Early 2022"]
[White "Moroni, Luca Jr"]
[Black "Silvestre, Christian"]
[WhiteFideId "865834"]
[BlackFideId "30956269"]
[WhiteElo "2573"]
[BlackElo "2373"]
[Result "1-0"]
[Round "10"]
[TimeControl "180+1"]
[Date "2022.04.26"]
[WhiteClock "0:01:26"]
[BlackClock "0:00:44"]

1. d4 {[%clk 0:03:00]}  Nf6 {[%clk 0:02:58]} 2. c4 {[%clk 0:03:01]}  d6 {[%clk 0:02:57]} 3. Nc3 {[%clk 0:03:01]}  g6 {[%clk 0:02:57]} 4. e4 {[%clk 0:02:59]}  Bg7 {[%clk 0:02:57]} 5. Bd3 {[%clk 0:03:00]}  O-O {[%clk 0:02:56]} 6. Nge2 {[%clk 0:03:00]}  c5 {[%clk 0:02:55]} 7. d5 {[%clk 0:03:00]}  e6 {[%clk 0:02:52]} 8. Bg5 {[%clk 0:03:00]}  h6 {[%clk 0:02:51]} 9. Bh4 {[%clk 0:02:58]}  exd5 {[%clk 0:02:51]} 10. exd5 {[%clk 0:02:53]}  Qb6 {[%clk 0:02:45]} 11. O-O {[%clk 0:02:50]}  a6 {[%clk 0:02:39]} 12. a3 {[%clk 0:02:47]}  Qxb2 {[%clk 0:02:31]} 13. Na4 {[%clk 0:02:42]}  Qe5 {[%clk 0:02:27]} 14. Nb6 {[%clk 0:02:39]}  Ra7 {[%clk 0:02:25]} 15. Re1 {[%clk 0:02:32]}  Qe7 {[%clk 0:02:20]} 16. Rb1 {[%clk 0:02:29]}  Qc7 {[%clk 0:02:17]} 17. Nc3 {[%clk 0:02:23]}  Nbd7 {[%clk 0:02:01]} 18. Nca4 {[%clk 0:02:22]}  Nxb6 {[%clk 0:02:00]} 19. Nxb6 {[%clk 0:02:21]}  a5 {[%clk 0:01:41]} 20. Qb3 {[%clk 0:02:05]}  a4 {[%clk 0:01:34]} 21. Qb5 {[%clk 0:01:50]}  Bd7 {[%clk 0:01:28]} 22. Re7 {[%clk 0:01:40]}  Bxb5 {[%clk 0:01:21]} 23. Rxc7 {[%clk 0:01:39]}  Be8 {[%clk 0:01:10]} 24. Nc8 {[%clk 0:01:33]}  Ra6 {[%clk 0:01:06]} 25. Rbxb7 {[%clk 0:01:33]}  Bd7 {[%clk 0:00:48]} 26. Ne7+ {[%clk 0:01:27]}  Kh7 {[%clk 0:00:45]} 27. Bxf6 {[%clk 0:01:26]}  Bxf6 {[%clk 0:00:44]} 28. Rxd7 {[%clk 0:01:26]} 1-0


[Site "https://www.chess.com"]